[Event "*** Titled Tuesday Blitz"]
[Site "Chess.com"]
[Date "2020.12.01"]
[Round "2"]
[White "GMStefanova"]
[Black "dropstoneDP"]
[Result "0-1"]
[WhiteElo "2555"]
[BlackElo "2913"]
[TimeControl "180+1"]
[EndTime "10:18:14 PST"]
[Termination "dropstoneDP won by resignation"]

1. d4 {[%clk 0:03:00.1]} 1... d5 {[%clk 0:02:56.2]} 2. Bf4 {[%clk 0:02:57.1]}
2... c5 {[%clk 0:02:55.2]} 3. e3 {[%clk 0:02:56.9]} 3... Nc6 {[%clk 0:02:54.4]}
4. c3 {[%clk 0:02:53]} 4... Nf6 {[%clk 0:02:53.6]} 5. Nd2 {[%clk 0:02:51.4]}
5... e6 {[%clk 0:02:50.7]} 6. Ngf3 {[%clk 0:02:45.1]} 6... Bd6 {[%clk
0:02:51.2]} 7. Bg3 {[%clk 0:02:42.6]} 7... O-O {[%clk 0:02:48.7]} 8. Ne5 {[%clk
0:02:38.8]} 8... Qc7 {[%clk 0:02:42]} 9. f4 {[%clk 0:02:36.3]} 9... Nd7 {[%clk
0:02:39.3]} 10. Bd3 {[%clk 0:02:31.8]} 10... f5 {[%clk 0:02:34.2]} 11. O-O
{[%clk 0:02:30]} 11... c4 {[%clk 0:02:20.7]} 12. Bc2 {[%clk 0:02:26.7]} 12... b5
{[%clk 0:02:21]} 13. Rf3 {[%clk 0:02:17.4]} 13... Rb8 {[%clk 0:01:56.1]} 14. Be1
{[%clk 0:02:13.2]} 14... Bb7 {[%clk 0:01:46.8]} 15. Rh3 {[%clk 0:02:10.6]} 15...
Nf6 {[%clk 0:01:29]} 16. Ndf3 {[%clk 0:02:05.4]} 16... Rbe8 {[%clk 0:01:08.2]}
17. Bh4 {[%clk 0:01:52.9]} 17... Ne4 {[%clk 0:01:06.7]} 18. Ng5 {[%clk
0:01:30.8]} 18... Nxg5 {[%clk 0:00:48.7]} 19. Bxg5 {[%clk 0:01:29]} 19... g6
{[%clk 0:00:26.5]} 20. g4 {[%clk 0:01:18.3]} 20... Nxe5 {[%clk 0:00:17.3]} 21.
fxe5 {[%clk 0:01:17]} 21... Be7 {[%clk 0:00:17.8]} 22. Bh6 {[%clk 0:01:13.2]}
22... Rf7 {[%clk 0:00:17.2]} 23. gxf5 {[%clk 0:01:05.4]} 23... exf5 {[%clk
0:00:18.1]} 24. Kf2 {[%clk 0:00:55.6]} 24... f4 {[%clk 0:00:13.4]} 25. exf4
{[%clk 0:00:50.1]} 25... Bc8 {[%clk 0:00:13.8]} 26. Re3 {[%clk 0:00:36.7]} 26...
Bf8 {[%clk 0:00:14.2]} 27. Bg5 {[%clk 0:00:25]} 27... h6 {[%clk 0:00:12.6]} 28.
Bxg6 {[%clk 0:00:08.9]} 28... hxg5 {[%clk 0:00:12.4]} 29. Bxf7+ {[%clk 0:00:09]}
29... Qxf7 {[%clk 0:00:13.3]} 30. Qf3 {[%clk 0:00:08.8]} 30... g4 {[%clk
0:00:06.6]} 31. Qg3 {[%clk 0:00:08.6]} 31... Bh6 {[%clk 0:00:06.8]} 32. Kg1
{[%clk 0:00:07.6]} 32... Bxf4 {[%clk 0:00:06]} 33. Qf2 {[%clk 0:00:08.1]} 33...
Bxe3 {[%clk 0:00:05.8]} 34. Qxe3 {[%clk 0:00:08.8]} 34... Rf8 {[%clk 0:00:05.6]}
35. Re1 {[%clk 0:00:08.7]} 35... Be6 {[%clk 0:00:03.4]} 36. Qg5+ {[%clk
0:00:08.5]} 36... Kh7 {[%clk 0:00:03.6]} 37. Qh4+ {[%clk 0:00:08.3]} 37... Kg6
{[%clk 0:00:03.9]} 38. Qg3 {[%clk 0:00:08]} 38... Qf3 {[%clk 0:00:04]} 39. Qxf3
{[%clk 0:00:07.9]} 39... Rxf3 {[%clk 0:00:04.9]} 40. Kg2 {[%clk 0:00:07.8]}
40... a5 {[%clk 0:00:05.1]} 41. Re2 {[%clk 0:00:07.6]} 41... Kg5 {[%clk
0:00:05.4]} 42. Rd2 {[%clk 0:00:07.3]} 42... b4 {[%clk 0:00:05.3]} 43. Rc2
{[%clk 0:00:06.5]} 43... Kf4 {[%clk 0:00:05.2]} 44. Rc1 {[%clk 0:00:05.8]} 44...
Ke4 {[%clk 0:00:05]} 45. a3 {[%clk 0:00:05.3]} 45... b3 {[%clk 0:00:05.1]} 46.
Re1+ {[%clk 0:00:04]} 46... Kd3 {[%clk 0:00:05.6]} 47. Rc1 {[%clk 0:00:02.4]}
47... Kd2 {[%clk 0:00:05.9]} 48. Ra1 {[%clk 0:00:01.5]} 48... Kc2 {[%clk
0:00:06.2]} 0-1

[Event "*** Titled Tuesday Blitz"]
[Site "Chess.com"]
[Date "2020.12.01"]
[Round "2"]
[White "GukeshDommaraju"]
[Black "Gudmundur_Kjartansson"]
[Result "1-0"]
[WhiteElo "2888"]
[BlackElo "2551"]
[TimeControl "180+1"]
[EndTime "10:18:15 PST"]
[Termination "GukeshDommaraju won by checkmate"]

1. d4 {[%clk 0:03:00]} 1... d5 {[%clk 0:02:58.3]} 2. Nf3 {[%clk 0:03:00.1]} 2...
e6 {[%clk 0:02:58.6]} 3. Bf4 {[%clk 0:03:00.2]} 3... Bd6 {[%clk 0:02:57.7]} 4.
e3 {[%clk 0:03:00.4]} 4... Bxf4 {[%clk 0:02:55.9]} 5. exf4 {[%clk 0:03:01.3]}
5... Nf6 {[%clk 0:02:56.1]} 6. Nbd2 {[%clk 0:03:00.7]} 6... O-O {[%clk
0:02:56.2]} 7. Bd3 {[%clk 0:03:00.3]} 7... c5 {[%clk 0:02:55.8]} 8. dxc5 {[%clk
0:03:00.4]} 8... Qc7 {[%clk 0:02:52.2]} 9. g3 {[%clk 0:02:59.8]} 9... Qxc5
{[%clk 0:02:50.9]} 10. O-O {[%clk 0:02:59.5]} 10... b6 {[%clk 0:02:50.5]} 11.
Nb3 {[%clk 0:02:59]} 11... Qc7 {[%clk 0:02:50.1]} 12. Nbd4 {[%clk 0:02:56.9]}
12... Ba6 {[%clk 0:02:46.6]} 13. Qe2 {[%clk 0:02:56.5]} 13... Bxd3 {[%clk
0:02:46.1]} 14. cxd3 {[%clk 0:02:57.4]} 14... Rc8 {[%clk 0:02:41.3]} 15. f5
{[%clk 0:02:31.6]} 15... exf5 {[%clk 0:02:40.9]} 16. Nxf5 {[%clk 0:02:31.6]}
16... Re8 {[%clk 0:02:41.4]} 17. Qd2 {[%clk 0:02:20.8]} 17... h6 {[%clk
0:02:40.8]} 18. Rac1 {[%clk 0:02:17.5]} 18... Qd7 {[%clk 0:02:39.5]} 19. N3d4
{[%clk 0:02:11.6]} 19... Na6 {[%clk 0:02:35.7]} 20. Rc6 {[%clk 0:02:06.5]} 20...
Re6 {[%clk 0:02:14.6]} 21. Nxe6 {[%clk 0:02:00.5]} 21... fxe6 {[%clk 0:02:10.8]}
22. Rd6 {[%clk 0:01:59.8]} 22... Qf7 {[%clk 0:01:45.5]} 23. Nd4 {[%clk
0:01:51.1]} 23... e5 {[%clk 0:01:43]} 24. Nb5 {[%clk 0:01:43.8]} 24... Nc5
{[%clk 0:01:36.6]} 25. b4 {[%clk 0:01:33.5]} 25... Ne6 {[%clk 0:01:36.6]} 26.
Rxe6 {[%clk 0:01:32.8]} 26... Qxe6 {[%clk 0:01:36.1]} 27. Nc7 {[%clk 0:01:32.9]}
27... Qc8 {[%clk 0:01:18.9]} 28. Nxa8 {[%clk 0:01:32.4]} 28... Qxa8 {[%clk
0:01:19]} 29. Re1 {[%clk 0:01:28.2]} 29... Qb8 {[%clk 0:01:12.9]} 30. Qc3 {[%clk
0:01:26.1]} 30... e4 {[%clk 0:01:08.3]} 31. dxe4 {[%clk 0:01:24.5]} 31... dxe4
{[%clk 0:01:08.3]} 32. Qd4 {[%clk 0:01:13.9]} 32... Qc8 {[%clk 0:01:01.8]} 33.
Rd1 {[%clk 0:01:03.8]} 33... Qh3 {[%clk 0:00:59.2]} 34. Rc1 {[%clk 0:00:55.1]}
34... Kh7 {[%clk 0:00:36]} 35. Rc7 {[%clk 0:00:51.9]} 35... Qf5 {[%clk
0:00:29.3]} 36. Rxa7 {[%clk 0:00:41.6]} 36... b5 {[%clk 0:00:28.2]} 37. a4
{[%clk 0:00:33.8]} 37... bxa4 {[%clk 0:00:27.1]} 38. Rxa4 {[%clk 0:00:33.5]}
38... h5 {[%clk 0:00:27.4]} 39. Ra5 {[%clk 0:00:32.9]} 39... Qf3 {[%clk
0:00:20.6]} 40. Ra7 {[%clk 0:00:30.6]} 40... h4 {[%clk 0:00:19.4]} 41. gxh4
{[%clk 0:00:24.4]} 41... Qg4+ {[%clk 0:00:13]} 42. Kf1 {[%clk 0:00:24.7]} 42...
Qxh4 {[%clk 0:00:12.8]} 43. Ke1 {[%clk 0:00:20.7]} 43... Nh5 {[%clk 0:00:07.4]}
44. b5 {[%clk 0:00:17.9]} 44... Qg4 {[%clk 0:00:03.6]} 45. b6 {[%clk 0:00:16]}
45... Nf6 {[%clk 0:00:03.7]} 46. Qxf6 {[%clk 0:00:13.7]} 46... Qg1+ {[%clk
0:00:03.8]} 47. Ke2 {[%clk 0:00:14]} 47... Qg4+ {[%clk 0:00:04.1]} 48. Ke3
{[%clk 0:00:12.6]} 48... Qh3+ {[%clk 0:00:03]} 49. f3 {[%clk 0:00:12.3]} 49...
exf3 {[%clk 0:00:01.8]} 50. Qxg7# {[%clk 0:00:11.9]} 1-0

[Event "*** Titled Tuesday Blitz"]
[Site "Chess.com"]
[Date "2020.12.01"]
[Round "2"]
[White "GM_dmitrij"]
[Black "biostatistician"]
[Result "1-0"]
[WhiteElo "2959"]
[BlackElo "2569"]
[TimeControl "180+1"]
[EndTime "10:18:16 PST"]
[Termination "GM_dmitrij won on time"]

1. c4 {[%clk 0:03:00.4]} 1... Nf6 {[%clk 0:02:58.8]} 2. Nc3 {[%clk 0:02:59.8]}
2... g6 {[%clk 0:02:58.4]} 3. g3 {[%clk 0:02:55.1]} 3... Bg7 {[%clk 0:02:58.3]}
4. Bg2 {[%clk 0:02:56]} 4... O-O {[%clk 0:02:59.2]} 5. e4 {[%clk 0:02:56.5]}
5... c5 {[%clk 0:02:59.2]} 6. Nge2 {[%clk 0:02:57.4]} 6... Nc6 {[%clk
0:02:58.8]} 7. O-O {[%clk 0:02:58]} 7... d6 {[%clk 0:02:59.1]} 8. a3 {[%clk
0:02:58]} 8... Bg4 {[%clk 0:02:56.1]} 9. d3 {[%clk 0:02:53]} 9... Ne8 {[%clk
0:02:54.3]} 10. f3 {[%clk 0:02:47.9]} 10... Bd7 {[%clk 0:02:54.1]} 11. Rb1
{[%clk 0:02:47.8]} 11... a5 {[%clk 0:02:53.6]} 12. Be3 {[%clk 0:02:47.6]} 12...
Nd4 {[%clk 0:02:51.6]} 13. Bf2 {[%clk 0:02:47.6]} 13... Nxe2+ {[%clk 0:02:43.6]}
14. Nxe2 {[%clk 0:02:48.5]} 14... Nc7 {[%clk 0:02:44.2]} 15. d4 {[%clk
0:02:47.1]} 15... cxd4 {[%clk 0:02:44.2]} 16. Nxd4 {[%clk 0:02:48]} 16... Ne6
{[%clk 0:02:44.4]} 17. Nb5 {[%clk 0:02:45.2]} 17... a4 {[%clk 0:02:39.9]} 18. f4
{[%clk 0:02:42.2]} 18... Bc6 {[%clk 0:02:28.2]} 19. Qd3 {[%clk 0:02:24]} 19...
Nc5 {[%clk 0:02:20]} 20. Qe2 {[%clk 0:02:24]} 20... b6 {[%clk 0:01:59.2]} 21.
Rfd1 {[%clk 0:02:16.7]} 21... Qc8 {[%clk 0:01:57.1]} 22. Nd4 {[%clk 0:02:14.1]}
22... Bb7 {[%clk 0:01:55.4]} 23. Re1 {[%clk 0:02:07.2]} 23... Ne6 {[%clk
0:01:32.2]} 24. Nb5 {[%clk 0:02:05.6]} 24... Nc5 {[%clk 0:01:30.6]} 25. Nc3
{[%clk 0:02:00.7]} 25... Bxc3 {[%clk 0:01:20.2]} 26. bxc3 {[%clk 0:02:01.6]}
26... Nd7 {[%clk 0:01:15.3]} 27. Bxb6 {[%clk 0:01:52.2]} 27... Nxb6 {[%clk
0:01:13.1]} 28. Rxb6 {[%clk 0:01:53.1]} 28... Ba6 {[%clk 0:01:07.5]} 29. Rb4
{[%clk 0:01:52]} 29... Qc5+ {[%clk 0:00:40.8]} 30. Qf2 {[%clk 0:01:47.5]} 30...
Rac8 {[%clk 0:00:41.3]} 31. Bf1 {[%clk 0:01:34.8]} 31... Qa5 {[%clk 0:00:32.2]}
32. e5 {[%clk 0:01:33.4]} 32... dxe5 {[%clk 0:00:27.4]} 33. Rxe5 {[%clk
0:01:34.3]} 33... Qc7 {[%clk 0:00:24.3]} 34. Rxa4 {[%clk 0:01:30.2]} 34... Bb7
{[%clk 0:00:24]} 35. Rb4 {[%clk 0:01:29.2]} 35... Rfd8 {[%clk 0:00:20.4]} 36.
Qb6 {[%clk 0:01:28.7]} 36... Ba8 {[%clk 0:00:15.2]} 37. Qxc7 {[%clk 0:01:24.2]}
37... Rxc7 {[%clk 0:00:16.1]} 38. Reb5 {[%clk 0:01:25.1]} 38... Kg7 {[%clk
0:00:15.5]} 39. Rb8 {[%clk 0:01:24.8]} 39... Rxb8 {[%clk 0:00:15]} 40. Rxb8
{[%clk 0:01:25.7]} 40... Be4 {[%clk 0:00:15.9]} 41. Kf2 {[%clk 0:01:02.4]} 41...
Ra7 {[%clk 0:00:15.8]} 42. Ke3 {[%clk 0:01:02.6]} 42... f5 {[%clk 0:00:15.9]}
43. Rb3 {[%clk 0:01:02.3]} 43... Bc2 {[%clk 0:00:14.4]} 44. Rb2 {[%clk
0:01:02.4]} 44... Bd1 {[%clk 0:00:11.3]} 45. Rd2 {[%clk 0:01:00.4]} 45... Bb3
{[%clk 0:00:11]} 46. c5 {[%clk 0:00:57.1]} 46... Rxa3 {[%clk 0:00:10.7]} 47. Bb5
{[%clk 0:00:35.2]} 47... Be6 {[%clk 0:00:09.7]} 48. Kd4 {[%clk 0:00:33.3]} 48...
Rb3 {[%clk 0:00:09.2]} 49. c4 {[%clk 0:00:31.9]} 49... Kf6 {[%clk 0:00:08.9]}
50. c6 {[%clk 0:00:32.3]} 50... Ra3 {[%clk 0:00:06.7]} 51. Kc5 {[%clk
0:00:32.1]} 51... Ra8 {[%clk 0:00:05.6]} 52. c7 {[%clk 0:00:31.8]} 1-0

[Event "*** Titled Tuesday Blitz"]
[Site "Chess.com"]
[Date "2020.12.01"]
[Round "2"]
[White "mirciulica14"]
[Black "cukin84"]
[Result "1-0"]
[WhiteElo "2598"]
[BlackElo "2177"]
[TimeControl "180+1"]
[EndTime "10:18:16 PST"]
[Termination "mirciulica14 won by resignation"]

1. d4 {[%clk 0:03:00.1]} 1... f5 {[%clk 0:02:58.5]} 2. g3 {[%clk 0:02:51.4]}
2... Nf6 {[%clk 0:02:58.4]} 3. Bg2 {[%clk 0:02:51.3]} 3... g6 {[%clk 0:02:58.2]}
4. Nf3 {[%clk 0:02:48.7]} 4... Bg7 {[%clk 0:02:58.3]} 5. O-O {[%clk 0:02:47.3]}
5... O-O {[%clk 0:02:58.3]} 6. b3 {[%clk 0:02:47.8]} 6... d6 {[%clk 0:02:57.9]}
7. Bb2 {[%clk 0:02:48.2]} 7... Qe8 {[%clk 0:02:57.5]} 8. Nbd2 {[%clk 0:02:43.6]}
8... Nbd7 {[%clk 0:02:54.5]} 9. Re1 {[%clk 0:01:39.8]} 9... e5 {[%clk
0:02:52.7]} 10. e4 {[%clk 0:01:39.7]} 10... fxe4 {[%clk 0:02:46.7]} 11. dxe5
{[%clk 0:01:33.2]} 11... Nxe5 {[%clk 0:02:28.8]} 12. Nxe5 {[%clk 0:01:26.2]}
12... dxe5 {[%clk 0:02:28.4]} 13. Nxe4 {[%clk 0:01:26.7]} 13... Nxe4 {[%clk
0:02:28.6]} 14. Bxe4 {[%clk 0:01:18.1]} 14... Kh8 {[%clk 0:02:25.5]} 15. Qe2
{[%clk 0:01:12.8]} 15... Qf7 {[%clk 0:02:23.3]} 16. Bg2 {[%clk 0:01:01.6]} 16...
c6 {[%clk 0:02:21.8]} 17. Bxe5 {[%clk 0:01:00.4]} 17... Bf5 {[%clk 0:02:14.2]}
18. Bxg7+ {[%clk 0:00:57.6]} 18... Qxg7 {[%clk 0:02:14.2]} 19. c4 {[%clk
0:00:55.2]} 19... Rad8 {[%clk 0:02:02.3]} 20. Rad1 {[%clk 0:00:51.7]} 20... Rxd1
{[%clk 0:01:58]} 21. Rxd1 {[%clk 0:00:49.7]} 21... Qc3 {[%clk 0:01:45.8]} 22.
Qd2 {[%clk 0:00:46.5]} 22... Qxd2 {[%clk 0:01:20.9]} 23. Rxd2 {[%clk 0:00:47.4]}
23... Re8 {[%clk 0:01:21.2]} 24. h4 {[%clk 0:00:46.5]} 24... Re1+ {[%clk
0:01:19.9]} 25. Kh2 {[%clk 0:00:46.7]} 25... Ra1 {[%clk 0:01:19.6]} 26. Rd8+
{[%clk 0:00:47.3]} 26... Kg7 {[%clk 0:01:19.2]} 27. Rb8 {[%clk 0:00:48.2]} 27...
Rxa2 {[%clk 0:01:15.6]} 28. Rxb7+ {[%clk 0:00:48]} 28... Kh6 {[%clk 0:01:15.9]}
29. Kg1 {[%clk 0:00:28.1]} 29... Ra1+ {[%clk 0:01:15.3]} 30. Kh2 {[%clk
0:00:28.3]} 30... Ra2 {[%clk 0:01:15.6]} 31. f3 {[%clk 0:00:24.2]} 31... Bd3
{[%clk 0:01:14.5]} 32. g4 {[%clk 0:00:22.9]} 32... g5 {[%clk 0:01:14.8]} 33.
hxg5+ {[%clk 0:00:21]} 33... Kxg5 {[%clk 0:01:15]} 34. Kg3 {[%clk 0:00:21.5]}
34... a5 {[%clk 0:01:07.9]} 35. f4+ {[%clk 0:00:21.6]} 35... Kg6 {[%clk
0:01:05.3]} 36. Bxc6 {[%clk 0:00:20.2]} 36... Rb2 {[%clk 0:01:03.7]} 37. f5+
{[%clk 0:00:20.1]} 37... Kf6 {[%clk 0:01:01.1]} 38. Kf4 {[%clk 0:00:19.8]} 38...
h6 {[%clk 0:00:54.7]} 39. Bf3 {[%clk 0:00:18.9]} 39... a4 {[%clk 0:00:52.7]} 40.
bxa4 {[%clk 0:00:19.3]} 40... Rf2 {[%clk 0:00:50]} 41. Ke3 {[%clk 0:00:18.6]}
41... Rf1 {[%clk 0:00:46.8]} 42. Rb6+ {[%clk 0:00:16.7]} 42... Kg5 {[%clk
0:00:45.4]} 43. Rg6+ {[%clk 0:00:16.9]} 43... Kh4 {[%clk 0:00:45.6]} 44. Rxh6+
{[%clk 0:00:17.3]} 44... Kg3 {[%clk 0:00:45.9]} 45. Kxd3 {[%clk 0:00:17.3]}
45... Rxf3+ {[%clk 0:00:45.6]} 46. Kd4 {[%clk 0:00:17.8]} 46... Kxg4 {[%clk
0:00:45.6]} 47. Re6 {[%clk 0:00:15.6]} 47... Kxf5 {[%clk 0:00:45.1]} 48. Re5+
{[%clk 0:00:15.9]} 48... Kf6 {[%clk 0:00:44.8]} 49. Re3 {[%clk 0:00:15]} 49...
Rf4+ {[%clk 0:00:44.6]} 50. Kd5 {[%clk 0:00:15.3]} 50... Rf1 {[%clk 0:00:43.8]}
51. c5 {[%clk 0:00:14.9]} 51... Ra1 {[%clk 0:00:43.6]} 52. Re4 {[%clk
0:00:15.2]} 52... Kf5 {[%clk 0:00:42.4]} 53. c6 {[%clk 0:00:15.1]} 53... Rd1+
{[%clk 0:00:41.8]} 54. Rd4 {[%clk 0:00:15.5]} 54... Rc1 {[%clk 0:00:41.9]} 55.
Rc4 {[%clk 0:00:15.9]} 55... Rd1+ {[%clk 0:00:40.7]} 56. Kc5 {[%clk 0:00:16.2]}
56... Ke6 {[%clk 0:00:40.8]} 57. a5 {[%clk 0:00:14.9]} 57... Ra1 {[%clk
0:00:38.7]} 58. Re4+ {[%clk 0:00:14.7]} 58... Kf5 {[%clk 0:00:37.1]} 59. Rd4
{[%clk 0:00:14.9]} 59... Rxa5+ {[%clk 0:00:36.1]} 60. Kb6 {[%clk 0:00:15.4]}
60... Ra1 {[%clk 0:00:35.4]} 61. c7 {[%clk 0:00:15.9]} 61... Rc1 {[%clk
0:00:34.7]} 62. Rd5+ {[%clk 0:00:15.8]} 62... Ke6 {[%clk 0:00:34]} 63. Rd8
{[%clk 0:00:12.2]} 63... Rb1+ {[%clk 0:00:32.3]} 64. Ka5 {[%clk 0:00:11.7]} 1-0

[Event "*** Titled Tuesday Blitz"]
[Site "Chess.com"]
[Date "2020.12.01"]
[Round "2"]
[White "Everyfishknows"]
[Black "Vincent_Vega95"]
[Result "0-1"]
[WhiteElo "2488"]
[BlackElo "2762"]
[TimeControl "180+1"]
[EndTime "10:18:17 PST"]
[Termination "Vincent_Vega95 won by checkmate"]

1. d4 {[%clk 0:02:59.3]} 1... Nf6 {[%clk 0:02:59.2]} 2. c4 {[%clk 0:02:59.2]}
2... g6 {[%clk 0:02:59.3]} 3. Nc3 {[%clk 0:02:58.9]} 3... Bg7 {[%clk 0:02:59.5]}
4. e4 {[%clk 0:02:59.1]} 4... O-O {[%clk 0:03:00.4]} 5. Nf3 {[%clk 0:02:57.8]}
5... d6 {[%clk 0:03:00.7]} 6. Be2 {[%clk 0:02:58.5]} 6... Nbd7 {[%clk
0:03:00.8]} 7. O-O {[%clk 0:02:58.8]} 7... e5 {[%clk 0:03:01.3]} 8. Be3 {[%clk
0:02:59.5]} 8... Qe7 {[%clk 0:03:00.3]} 9. Qc2 {[%clk 0:02:54.8]} 9... c6 {[%clk
0:02:45.2]} 10. d5 {[%clk 0:02:47.4]} 10... Ng4 {[%clk 0:02:35]} 11. Bg5 {[%clk
0:02:46.4]} 11... f6 {[%clk 0:02:34.8]} 12. Bd2 {[%clk 0:02:45.9]} 12... Nh6
{[%clk 0:02:34.2]} 13. b4 {[%clk 0:02:16.5]} 13... a5 {[%clk 0:02:33.9]} 14.
dxc6 {[%clk 0:02:02.4]} 14... bxc6 {[%clk 0:02:34]} 15. b5 {[%clk 0:02:02.8]}
15... Bb7 {[%clk 0:02:15.4]} 16. bxc6 {[%clk 0:01:53.7]} 16... Bxc6 {[%clk
0:02:15.7]} 17. Nd5 {[%clk 0:01:54.4]} 17... Qd8 {[%clk 0:02:16.1]} 18. Rab1
{[%clk 0:01:43]} 18... Nf7 {[%clk 0:02:11.5]} 19. Rfd1 {[%clk 0:01:37.9]} 19...
Bh6 {[%clk 0:01:52.8]} 20. Bxh6 {[%clk 0:01:19]} 20... Nxh6 {[%clk 0:01:53.7]}
21. Qd2 {[%clk 0:01:18.5]} 21... Nf7 {[%clk 0:01:53.4]} 22. h3 {[%clk
0:00:51.8]} 22... Kg7 {[%clk 0:01:52.7]} 23. Nh2 {[%clk 0:00:51.8]} 23... Nc5
{[%clk 0:01:45.3]} 24. Qe3 {[%clk 0:00:46.6]} 24... h5 {[%clk 0:01:41.6]} 25.
Nf3 {[%clk 0:00:28.2]} 25... Ne6 {[%clk 0:01:09.3]} 26. Nh4 {[%clk 0:00:25.6]}
26... Bxd5 {[%clk 0:01:06.4]} 27. cxd5 {[%clk 0:00:22.7]} 27... Nd4 {[%clk
0:01:05.9]} 28. Rxd4 {[%clk 0:00:20.5]} 28... exd4 {[%clk 0:01:06.2]} 29. Qxd4
{[%clk 0:00:20.4]} 29... Rb8 {[%clk 0:01:03.2]} 30. Rf1 {[%clk 0:00:13.8]} 30...
Qb6 {[%clk 0:00:58.9]} 31. Qd3 {[%clk 0:00:09.7]} 31... Rfe8 {[%clk 0:00:47.9]}
32. Bxh5 {[%clk 0:00:09.6]} 32... gxh5 {[%clk 0:00:42.3]} 33. Nf5+ {[%clk
0:00:09.9]} 33... Kf8 {[%clk 0:00:13.4]} 34. Qf3 {[%clk 0:00:10]} 34... Re5
{[%clk 0:00:11.2]} 35. Qxh5 {[%clk 0:00:07.8]} 35... Rxf5 {[%clk 0:00:11.7]} 36.
Qxf5 {[%clk 0:00:08.7]} 36... Qd8 {[%clk 0:00:10.2]} 37. Rc1 {[%clk 0:00:07.1]}
37... Qe7 {[%clk 0:00:09.8]} 38. g3 {[%clk 0:00:05]} 38... Kg7 {[%clk
0:00:09.8]} 39. Kg2 {[%clk 0:00:05.1]} 39... Re8 {[%clk 0:00:09.7]} 40. f3
{[%clk 0:00:04.8]} 40... Qe5 {[%clk 0:00:10.2]} 41. Qg4+ {[%clk 0:00:05.1]}
41... Kf8 {[%clk 0:00:10.2]} 42. Rc7 {[%clk 0:00:04.5]} 42... Re7 {[%clk
0:00:10.6]} 43. Rc8+ {[%clk 0:00:04.5]} 43... Re8 {[%clk 0:00:10.5]} 44. Rc7
{[%clk 0:00:04.6]} 44... Qb2+ {[%clk 0:00:10.7]} 45. Kg1 {[%clk 0:00:04]} 45...
Qb1+ {[%clk 0:00:11.3]} 46. Kf2 {[%clk 0:00:04.5]} 46... Qxa2+ {[%clk
0:00:11.8]} 47. Kg1 {[%clk 0:00:04.8]} 47... Qb1+ {[%clk 0:00:11.8]} 48. Kg2
{[%clk 0:00:05.4]} 48... Qb2+ {[%clk 0:00:12.3]} 49. Kh1 {[%clk 0:00:06]} 49...
Qb1+ {[%clk 0:00:12.8]} 50. Kg2 {[%clk 0:00:06.7]} 50... Qa2+ {[%clk 0:00:13.1]}
51. Kh1 {[%clk 0:00:07.1]} 51... Rb8 {[%clk 0:00:13.6]} 52. Rxf7+ {[%clk
0:00:06.2]} 52... Kxf7 {[%clk 0:00:13.5]} 53. Qd7+ {[%clk 0:00:06.4]} 53... Kg6
{[%clk 0:00:13.4]} 54. Qg4+ {[%clk 0:00:06.6]} 54... Kf7 {[%clk 0:00:13.2]} 55.
Qd7+ {[%clk 0:00:06.8]} 55... Kg8 {[%clk 0:00:13.1]} 56. Qxd6 {[%clk 0:00:07.3]}
56... Rb1# {[%clk 0:00:12.1]} 0-1

[Event "*** Titled Tuesday Blitz"]
[Site "Chess.com"]
[Date "2020.12.01"]
[Round "2"]
[White "DarZay"]
[Black "DanilNajdin"]
[Result "1-0"]
[WhiteElo "2144"]
[BlackElo "2376"]
[TimeControl "180+1"]
[EndTime "10:18:17 PST"]
[Termination "DarZay won on time"]

1. e4 {[%clk 0:03:00.5]} 1... e5 {[%clk 0:02:58.4]} 2. Nf3 {[%clk 0:02:59.7]}
2... Nc6 {[%clk 0:02:58.9]} 3. d4 {[%clk 0:02:57.6]} 3... exd4 {[%clk
0:02:58.2]} 4. Nxd4 {[%clk 0:02:57.8]} 4... Nf6 {[%clk 0:02:58.5]} 5. Nc3 {[%clk
0:02:57.9]} 5... Bb4 {[%clk 0:02:57.5]} 6. f3 {[%clk 0:02:37.3]} 6... O-O {[%clk
0:02:51.3]} 7. Bc4 {[%clk 0:02:34]} 7... d5 {[%clk 0:02:41.3]} 8. exd5 {[%clk
0:02:01.9]} 8... Nxd5 {[%clk 0:02:40.5]} 9. Bxd5 {[%clk 0:02:00]} 9... Qxd5
{[%clk 0:02:38.3]} 10. Ne2 {[%clk 0:01:54.8]} 10... Qxd1+ {[%clk 0:02:12.1]} 11.
Kxd1 {[%clk 0:01:54.5]} 11... Rd8+ {[%clk 0:02:11.4]} 12. Ke1 {[%clk 0:01:47.1]}
12... Bf5 {[%clk 0:02:09.4]} 13. Bf4 {[%clk 0:01:40.8]} 13... Nd4 {[%clk
0:02:00.7]} 14. Nxd4 {[%clk 0:01:35.8]} 14... Rxd4 {[%clk 0:02:01.6]} 15. Bxc7
{[%clk 0:01:20.7]} 15... Re8+ {[%clk 0:01:58.8]} 16. Kf2 {[%clk 0:01:16.6]}
16... Rd2+ {[%clk 0:01:49.7]} 17. Kg3 {[%clk 0:01:11]} 17... Bxc3 {[%clk
0:01:16]} 18. bxc3 {[%clk 0:01:09.4]} 18... Ree2 {[%clk 0:01:16.5]} 19. Rhg1
{[%clk 0:01:06.2]} 19... g5 {[%clk 0:01:08.1]} 20. Rae1 {[%clk 0:01:01.3]} 20...
Rxc2 {[%clk 0:00:55.4]} 21. Rxe2 {[%clk 0:00:57]} 21... Rxe2 {[%clk 0:00:56.3]}
22. Rd1 {[%clk 0:00:52.3]} 22... h5 {[%clk 0:00:52.8]} 23. h3 {[%clk 0:00:44]}
23... h4+ {[%clk 0:00:50.8]} 24. Kh2 {[%clk 0:00:44]} 24... Rxa2 {[%clk
0:00:50]} 25. Rd5 {[%clk 0:00:42]} 25... Be6 {[%clk 0:00:35.9]} 26. Rxg5+ {[%clk
0:00:41.4]} 26... Kf8 {[%clk 0:00:35.6]} 27. Bd6+ {[%clk 0:00:31.4]} 27... Ke8
{[%clk 0:00:35.2]} 28. Rh5 {[%clk 0:00:31]} 28... Kd7 {[%clk 0:00:31.1]} 29. Bb4
{[%clk 0:00:29.5]} 29... b6 {[%clk 0:00:31.1]} 30. Rxh4 {[%clk 0:00:28.8]} 30...
a5 {[%clk 0:00:31]} 31. Bf8 {[%clk 0:00:28.3]} 31... a4 {[%clk 0:00:27.9]} 32.
Rb4 {[%clk 0:00:26.7]} 32... Bb3 {[%clk 0:00:20.7]} 33. Rxb6 {[%clk 0:00:21.6]}
33... Kc7 {[%clk 0:00:19]} 34. Rb4 {[%clk 0:00:20.5]} 34... Bd5 {[%clk
0:00:17.5]} 35. Rf4 {[%clk 0:00:18.7]} 35... Ra1 {[%clk 0:00:10.6]} 36. h4
{[%clk 0:00:18.2]} 36... a3 {[%clk 0:00:10.6]} 37. Ra4 {[%clk 0:00:18]} 37... a2
{[%clk 0:00:10.6]} 38. h5 {[%clk 0:00:17.5]} 38... Re1 {[%clk 0:00:08]} 39. h6
{[%clk 0:00:16.8]} 39... Bb3 {[%clk 0:00:08.5]} 40. Ra3 {[%clk 0:00:13]} 40...
a1=Q {[%clk 0:00:05.8]} 41. Rxa1 {[%clk 0:00:11.5]} 41... Rxa1 {[%clk
0:00:06.7]} 42. h7 {[%clk 0:00:11.7]} 42... Kd7 {[%clk 0:00:03.1]} 43. h8=Q
{[%clk 0:00:09.7]} 43... Ra2 {[%clk 0:00:04]} 44. Qh3+ {[%clk 0:00:08.6]} 44...
Be6 {[%clk 0:00:03.7]} 45. Qg3 {[%clk 0:00:08.7]} 45... Ke8 {[%clk 0:00:03.6]}
46. Qd6 {[%clk 0:00:08.3]} 46... Ra7 {[%clk 0:00:04]} 47. Qc6+ {[%clk
0:00:07.5]} 47... Rd7 {[%clk 0:00:02.5]} 48. Bd6 {[%clk 0:00:06.5]} 1-0